Cogmind - Beta 14 @@@ ROGUE MODE // 2024.09.28 @ 04:53:51 Player: Carpathian Result: Self-destructed Performance ------------- Evolutions (3) 1500 Regions Visited (6) 1200 Robots Destroyed (40) 200 Value Destroyed (1362) 1362 Prototype IDs (2) 40 Alien Tech Used (0) 0 Bonus (867) 867 TOTAL SCORE: 5169 Bonus ------- High Alert Combat Kills 33 Follower Combat Kills 334 Entered DSFs 500 Cogmind --------- Core Integrity 443/700 Matter 210/300 Energy 92/100 System Corruption 0% Temperature Cool (0) Movement Core (250) Ox4 Location -7/DSF Parts ------- > --- POWER (2) -------- (None) > --- PROPULSION (2) --- (None) > --- UTILITY (6) ------ Medium Storage Unit Targeting Computer > --- WEAPON (3) ------- Heavy Laser > --- INVENTORY (10) --- Improved Targeting Computer Peak State ------------ > --- POWER ------------ Improved Ion Engine Light Nuclear Core > --- PROPULSION ------- Improved Carbon-fiber Leg Improved Carbon-fiber Leg > --- UTILITY ---------- Small Storage Unit Targeting Computer Hardened Medium Armor Plating Shock Absorption System > --- WEAPON ----------- Improved Heavy Machine Gun Improved Light Cannon > --- INVENTORY -------- Improved Targeting Computer Shock Rifle Heavy Assault Rifle Improved Light Cannon Mini Grenade Launcher [Rating: 31] Favorites ----------- Power Heavy Ion Engine Engine Heavy Ion Engine Power Core Light Nuclear Core Propulsion Aluminum Leg Treads Light Treads Leg Aluminum Leg Utility Small Storage Unit Device ECM Suite Storage Small Storage Unit Processor Transport Network Coupler Protection Hardened Medium Armor Plating Weapon Improved Heavy Machine Gun Energy Gun Small Laser Energy Cannon Plasma Cannon Ballistic Gun Improved Heavy Machine Gun Ballistic Cannon Improved Light Cannon Launcher Mini Grenade Launcher Build | -11 -10 -9 -9 -8 -7 -7 ------- Run | Yrd Mat Mat Sto Mat Fac DSF Slots Evolved 6 | . . 2 . 2 2 . Power 1 | . . . . 1 . . Propulsion . | . . . . . . . Utility 4 | . . 2 . 1 1 . Weapon 1 | . . . . . 1 . Parts Attached 44 | 6 3 2 12 10 3 8 Power 9 | 1 2 . 2 3 1 . Engine 6 | 1 2 . 2 1 . . Core 3 | . . . . 2 1 . Reactor . | . . . . . . . Propulsion 10 | 2 . . 4 2 . 2 Treads 4 | . . . 4 . . . Leg 6 | 2 . . . 2 . 2 Wheel . | . . . . . . . Hover . | . . . . . . . Flight . | . . . . . . . Utility 10 | 1 1 2 2 3 . 1 Device 3 | . 1 1 . 1 . . Storage 2 | 1 . . . . . 1 Processor 3 | . . 1 2 . . . Hackware . | . . . . . . . Protection 2 | . . . . 2 . . Artifact . | . . . . . . . Weapon 15 | 2 . . 4 2 2 5 Energy Gun 4 | 1 . . . . 2 1 Energy Cannon 1 | . . . . . . 1 Ballistic Gun 6 | 1 . . 3 . . 2 Ballistic Cannon 2 | . . . 1 1 . . Launcher 2 | . . . . 1 . 1 Special Weapon . | . . . . . . . Impact Weapon . | . . . . . . . Slashing Weapon . | . . . . . . . Piercing Weapon . | . . . . . . . Special Melee Weapon . | . . . . . . . Unidentified Prototypes 2 | . . . 2 . . . Parts Lost 13 | . . . 2 2 . 9 Power 2 | . . . . . . 2 Propulsion 3 | . . . 1 . . 2 Utility 4 | . . . 1 2 . 1 Weapon 4 | . . . . . . 4 Highest Loss Streak 5 | . . . 1 2 . 5 To Critical Strikes 1 | . . . . . . 1 Average Slot Usage (%) 79 | . 87 92 82 76 69 52 Engine 9 | . 14 11 11 9 4 . Core 1 | . . . . 2 9 4 Treads 6 | . . . 9 8 . . Leg 11 | . 28 22 7 9 15 12 Device 7 | . 2 18 10 4 . . Storage 10 | . 14 11 11 9 7 7 Processor 9 | . . 7 11 11 7 7 Protection 1 | . . . . 3 7 2 Energy Gun 3 | . 14 11 . . 9 7 Ballistic Gun 12 | . 14 11 14 9 3 5 Ballistic Cannon 5 | . . . 6 8 1 . Peak Build Rating 31 | 6 7 10 19 31 29 28 Average Rating 14 | 5 6 8 13 21 27 20 On Entrance 13 | . 6 7 10 14 27 28 Naked Turns . | . . . . . . . Heaviest Build 36 | 11 15 16 24 36 33 31 Greatest Support 40 | 20 20 20 40 40 36 40 Greatest Overweight (x) 6 | . . . 1 . . 6 Average Overweight (x) . | . . . . . . . Largest Inventory Capacity 10 | 8 8 8 8 8 8 10 Average Capacity 8 | 7 8 8 8 8 8 8 Most Carried 8 | 4 7 7 8 7 6 5 Average Carried 5 | 3 4 6 6 4 4 3 Final Capacity 10 | 8 8 8 8 8 8 10 Final Carried 6 | 4 6 6 5 5 5 1 Class Distribution -------------------- 77% | Mutant 19% | Commander-Mutant 3% | Gunner Dominant Class ---------------- Mutant | -10/Materials Mutant | -9/Materials Mutant | -9/Storage Mutant | -8/Materials Mutant | -7/Factory Mutant | -7/DSF Resources | -11 -10 -9 -9 -8 -7 -7 ----------- Run | Yrd Mat Mat Sto Mat Fac DSF Matter Collected 1159 | 227 28 . 423 251 . 230 Remotely . | . . . . . . . Salvage Created 1526 | . 47 . 702 407 . 370 Parts 78 | . 3 . 39 19 . 17 Haulers Intercepted 4 | . . . 4 . . . Recyclers Shooed . | . . . . . . . Parts Field Recycled . | . . . . . . . Retrieved Matter . | . . . . . . . Parts Self-Destructed . | . . . . . . . Prevented . | . . . . . . . Kills | -11 -10 -9 -9 -8 -7 -7 ------- Run | Yrd Mat Mat Sto Mat Fac DSF Combat Hostiles Destroyed 30 | . 3 . 10 10 . 7 Guns 19 | . 3 . 8 5 . 3 Cannons 7 | . . . 2 4 . 1 AOE 3 | . . . . 1 . 2 Classes Destroyed 9 | . 1 . 6 1 . 1 Worker 3 | . . . 2 1 . . Builder 2 | . . . 2 . . . Hauler 4 | . . . 4 . . . Recycler 1 | . . . . 1 . . Swarmer 3 | . 3 . . . . . Grunt 11 | . . . 3 6 . 2 Brawler 4 | . . . 1 2 . 1 Sentry 8 | . . . 6 2 . . Specialist 4 | . . . . . . 4 Best Kill Streak 6 | . 3 . 6 5 . 3 Combat Bots Only 4 | . 3 . 2 4 . 3 Max Kills in Single Turn 2 | . 2 . 2 2 . 1 Gunslinging 1 | . 1 . . . . . Exploded 1 | . . . . 1 . 1 Melee . | . . . . . . . Uniques/NPCs Destroyed . | . . . . . . . Combat | -11 -10 -9 -9 -8 -7 -7 -------- Run | Yrd Mat Mat Sto Mat Fac DSF Hostile Shots Fired 254 | . 28 . 58 54 . 114 Missed 81 | . 11 . 18 15 . 37 Damage Taken 3213 | . 151 . 727 685 . 1650 Core 585 | . 16 . 195 117 . 257 Absorbed by Shields . | . . . . . . . Core Remaining (%) 80 | 100 93 . 51 78 . . Volleys Fired 103 | . 7 . 41 29 . 26 Largest 2 | . 2 . 2 2 . 2 Hottest 149 | . 60 . 60 54 . 149 Shots Fired 196 | . 14 . 82 58 . 42 Gun 133 | . 14 . 56 29 . 34 Cannon 56 | . . . 26 25 . 5 Launcher 7 | . . . . 4 . 3 Special . | . . . . . . . Kinetic 160 | . 7 . 77 54 . 22 Thermal 27 | . 7 . 5 . . 15 Explosive 7 | . . . . 4 . 3 Electromagnetic 2 | . . . . . . 2 Robot Hit Streak 16 | . 3 . 16 9 . 14 Robot Miss Streak 5 | . 3 . 5 5 . 2 Penetration Max . | . . . . . . . Secondary Targets 1 | . 1 . . . . . Max Gunslinging Chain 1 | . 1 . . . . . Shots Hit Robots 127 | . 6 . 53 38 . 30 Core Hits 61 | . 3 . 25 19 . 14 Critical Kills 1 | . . . . . . 1 Critical Parts Destroyed 1 | . 1 . . . . . Critical Strikes 2 | . 1 . . . . 1 Meltdown 1 | . . . . . . 1 Destroy 1 | . 1 . . . . . Melee Attacks . | . . . . . . . Impact . | . . . . . . . Slashing . | . . . . . . . Piercing . | . . . . . . . Sneak Attacks . | . . . . . . . Combat Hostiles . | . . . . . . . Follow-up Attacks . | . . . . . . . Damage Inflicted 3047 | . 73 . 1121 1076 . 777 Guns 1644 | . 73 . 739 439 . 393 Cannons 891 | . . . 381 380 . 130 Explosions 511 | . . . . 257 . 254 Melee . | . . . . . . . Ramming 1 | . . . 1 . . . Kinetic 2235 | . 61 . 1086 819 . 269 Thermal 271 | . 12 . 34 . . 225 Explosive 511 | . . . . 257 . 254 Electromagnetic 29 | . . . . . . 29 Impact . | . . . . . . . Slashing . | . . . . . . . Piercing . | . . . . . . . Highest Corruption 2 | . . . . 2 . . Average Corruption 2 | . . . . 2 . . Corruption Purged . | . . . . . . . Corruption Blocked . | . . . . . . . Effects 4 | . . . . 4 . . Matter Fused 2 | . . . . 2 . . Heat Flow Errors 1 | . . . . 1 . . Parts Rejected 1 | . . . . 1 . . Overload Shots . | . . . . . . . Overflow Damage 7 | . . . 7 . . . Projectiles 7 | . . . 7 . . . Explosions . | . . . . . . . Melee . | . . . . . . . Knockbacks 7 | . . . 3 4 . . Impact . | . . . . . . . Kinetic 7 | . . . 3 4 . . Secondary . | . . . . . . . Self-Inflicted Damage 52 | . . . . 52 . . Shots 3 | . . . . 3 . . Rammed 1 | . . . 1 . . . Targets Rammed 1 | . . . 1 . . . Kicked . | . . . . . . . Crushed . | . . . . . . . Highest Temperature 167 | . . . 45 167 . 28 Average Temperature 32 | . . . 13 48 . 16 Received Heat Transfer 633 | . 9 . 264 333 . 27 Siege Activations . | . . . . . . . Robots Corrupted . | . . . . . . . Combat Hostiles . | . . . . . . . Parts Fried . | . . . . . . . Impact Corruptions . | . . . . . . . Robots Melted 1 | . . . . . . 1 Combat Hostiles 1 | . . . . . . 1 Parts Melted 3 | . . . . . . 3 Heat Transferred 535 | . 25 . 75 . . 435 Parts Sabotaged . | . . . . . . . Parts Stolen . | . . . . . . . Parts Stripped . | . . . . . . . Power Chain Reactions . | . . . . . . . Alert | -11 -10 -9 -9 -8 -7 -7 ------- Run | Yrd Mat Mat Sto Mat Fac DSF Peak Influence 570 | . 135 71 570 471 132 202 Initial 166 | . . 56 29 166 132 92 Average 217 | . 68 56 289 275 132 135 Maximum Alert Level 2 | . . . 2 2 . 1 Low Security (%) 56 | 100 100 100 37 33 100 87 Level 1 24 | . . . 28 55 . 12 Level 2 19 | . . . 33 10 . . Level 3 . | . . . . . . . Level 4 . | . . . . . . . Level 5 . | . . . . . . . High Security . | . . . . . . . Max Security . | . . . . . . . Squads Dispatched 6 | . . . 4 . . 2 Investigation 1 | . . . 1 . . . Extermination . | . . . . . . . Reinforcement 5 | . . . 3 . . 2 Assault . | . . . . . . . Garrison . | . . . . . . . Intercept . | . . . . . . . Searches Triggered . | . . . . . . . Construction Impeded . | . . . . . . . Haulers Reinforced . | . . . . . . . Active Scanning Responses . | . . . . . . . Cargo Convoy Interrupts . | . . . . . . . Stealth | -11 -10 -9 -9 -8 -7 -7 --------- Run | Yrd Mat Mat Sto Mat Fac DSF Distress Signals 7 | . . . 3 4 . . Communications Jammed . | . . . . . . . Distress Signals . | . . . . . . . Times Spotted 64 | . 7 2 28 14 . 13 Peak Tracking Total 5 | . 3 4 3 5 . 5 Tactical Retreats 2 | . . 1 1 . . . Traps | -11 -10 -9 -9 -8 -7 -7 ------- Run | Yrd Mat Mat Sto Mat Fac DSF Traps Triggered 1 | . . . 1 . . . Indirectly . | . . . . . . . Trap Hack Attempts . | . . . . . . . Triggered . | . . . . . . . Disarmed . | . . . . . . . Reprogrammed . | . . . . . . . Reused . | . . . . . . . Traps Extracted . | . . . . . . . Installed . | . . . . . . . Triggered . | . . . . . . . Machines | -11 -10 -9 -9 -8 -7 -7 ---------- Run | Yrd Mat Mat Sto Mat Fac DSF Machines Disabled 3 | . . . . 3 . . Max in Single Turn 2 | . . . . 2 . . Machines Repaired . | . . . . . . . Machines Dismantled . | . . . . . . . Machines Sabotaged . | . . . . . . . Overloaded Fab Kills . | . . . . . . . Hacking | -11 -10 -9 -9 -8 -7 -7 --------- Run | Yrd Mat Mat Sto Mat Fac DSF Machines Accessed 7 | . 1 . 4 1 1 . Terminals 7 | . 1 . 4 1 1 . Fabricators . | . . . . . . . Repair Stations . | . . . . . . . Recycling Units . | . . . . . . . Scanalyzers . | . . . . . . . Garrison Access . | . . . . . . . Total Hacks 14 | . 2 . 8 2 2 . Successful 6 | . 1 . 3 1 1 . Failed 8 | . 1 . 5 1 1 . Catastrophic 1 | . . . . 1 . . Database Lockouts . | . . . . . . . Manual . | . . . . . . . Terminals 14 | . 2 . 8 2 2 . Fabricators . | . . . . . . . Repair Stations . | . . . . . . . Recycling Units . | . . . . . . . Scanalyzers . | . . . . . . . Garrison Access . | . . . . . . . Terminal Hacks 6 | . 1 . 3 1 1 . Open Door 2 | . . . 2 . . . Open DSF 1 | . . . . . 1 . Level Access Points 1 | . . . . 1 . . Zone Layout 2 | . 1 . 1 . . . Fabricator Hacks . | . . . . . . . Repair Station Hacks . | . . . . . . . Recycling Unit Hacks . | . . . . . . . Scanalyzer . | . . . . . . . Garrison Access Hacks . | . . . . . . . Unauthorized Hacks . | . . . . . . . Terminals . | . . . . . . . Fabricators . | . . . . . . . Repair Stations . | . . . . . . . Recycling Units . | . . . . . . . Scanalyzers . | . . . . . . . Garrison Access . | . . . . . . . Data Cores Recovered . | . . . . . . . Used . | . . . . . . . Hacking Detections 4 | . 1 . 1 1 1 . Full Trace Events 1 | . . . 1 . . . Feedback Events . | . . . . . . . Feedback Blocked . | . . . . . . . Robot Schematics Acquired . | . . . . . . . Robots Built . | . . . . . . . Authchips . | . . . . . . . Time . | . . . . . . . Total Robot Build Rating . | . . . . . . . Part Schematics Acquired . | . . . . . . . Parts Built . | . . . . . . . Authchips . | . . . . . . . Time . | . . . . . . . Total Part Build Rating . | . . . . . . . Parts Repaired . | . . . . . . . Time . | . . . . . . . Parts Recycled . | . . . . . . . Recycled Matter . | . . . . . . . Retrieved Matter . | . . . . . . . Retrieved Components . | . . . . . . . Parts Scanalyzed . | . . . . . . . Part Schematics Acquired . | . . . . . . . Parts Damaged . | . . . . . . . Bothacking | -11 -10 -9 -9 -8 -7 -7 ------------ Run | Yrd Mat Mat Sto Mat Fac DSF Used RIF Installer . | . . . . . . . Robots Hacked . | . . . . . . . Non-combat . | . . . . . . . Combat . | . . . . . . . Robot Hacks Applied . | . . . . . . . Relay Couplers Released . | . . . . . . . Fabnet Peak Effective % . | . . . . . . . Robots Rewired 1 | . . . 1 . . . Allies Hacked . | . . . . . . . Hacks Repelled . | . . . . . . . Allies | -11 -10 -9 -9 -8 -7 -7 -------- Run | Yrd Mat Mat Sto Mat Fac DSF Total Allies 10 | . . . 10 . . . Largest Group 10 | . . . 10 1 . . Highest-Rated Group 88 | . . . 88 16 . . Highest-Rated Ally 16 | . . . 16 16 . . Total Orders . | . . . . . . . Ally Attacks 111 | . . . 108 3 . . Total Damage 1094 | . . . 1081 13 . . Kills 15 | . . . 15 . . . Allies Corrupted . | . . . . . . . Allies Melted . | . . . . . . . Intel | -11 -10 -9 -9 -8 -7 -7 ------- Run | Yrd Mat Mat Sto Mat Fac DSF Robot Analysis Total . | . . . . . . . Derelict Logs Recovered . | . . . . . . . Drone Launches . | . . . . . . . Drone Recoveries . | . . . . . . . Exploration | -11 -10 -9 -9 -8 -7 -7 ------------- Run | Yrd Mat Mat Sto Mat Fac DSF Turns Passed 2784 | 182 339 96 1440 439 83 205 Spaces Moved 1282 | 75 172 60 636 212 52 75 Core 23 | 14 . . . . . 9 Treads 478 | . . . 389 89 . . Legs 781 | 61 172 60 247 123 52 66 Wheels . | . . . . . . . Hover . | . . . . . . . Flight . | . . . . . . . Fastest Speed 50 | 50 120 120 120 120 120 120 Average Speed 152 | 106 120 120 178 136 120 136 Slowest Speed 350 | 120 120 120 240 160 120 350 Overloaded Moves . | . . . . . . . Propulsion Burnouts . | . . . . . . . Robots Hopped . | . . . . . . . Cave-ins Triggered . | . . . . . . . Exploration Rate (%) 26 | 5 36 6 82 23 2 30 Regions Visited 6 Branch Regions 1 Pre-discovered Areas 1 | . . . 1 . . . Known Exits Taken 2 | . . . . 1 1 . Unknown Exits Taken 4 | 1 1 1 1 . . . Scrap Searched . | . . . . . . . Spaces Dug . | . . . . . . . Terrain Destroyed 29 | . . . 1 17 . 11 Melee . | . . . . . . . Projectile 3 | . . . 1 2 . . AOE 26 | . . . . 15 . 11 Terrain Rammed . | . . . . . . . Walls Destroyed . | . . . . . . . Machines Disabled . | . . . . . . . Actions | -11 -10 -9 -9 -8 -7 -7 --------- Run | Yrd Mat Mat Sto Mat Fac DSF Total 1932 | 177 290 84 864 309 73 135 Wait 430 | 87 104 21 149 41 11 17 Move 1276 | 74 171 59 635 211 51 75 Hop . | . . . . . . . Pick Up 46 | 10 4 2 11 11 4 4 Fast Attach . | . . . . . . . Attach 19 | 6 1 2 3 4 . 3 Detach . | . . . . . . . Swap 25 | . 2 . 9 6 3 5 Drop 28 | . 1 . 11 7 4 5 Fire 103 | . 7 . 41 29 . 26 Melee . | . . . . . . . Ram . | . . . . . . . Kick . | . . . . . . . Crush 1 | . . . 1 . . . Escape Stasis 2 | . . . 2 . . . Rewire 2 | . . . 2 . . . Trap . | . . . . . . . Miscellaneous . | . . . . . . . Route ------- -11/Scrapyard -10/Materials (discovered 2 exits: [*Mat] / [*Min]) -9/Materials -9/Storage -8/Materials (discovered 3 exits: *Fac x3) -7/Factory -7/DSF History --------- Turn | Location | Event 4 | -11/Scrapyard | Discovered new exit (range 16) 183 | -11/Scrapyard | Entered Materials 317 | -10/Materials | Build established: Mutant 386 | -10/Materials | Discovered new exit (range 16) 438 | -10/Materials | Discovered new exit (range 15) 522 | -10/Materials | Entered another Materials area 522 | -9/Materials | Evolved 2 slots: Utility x2 591 | -9/Materials | Discovered new exit (range 7) 618 | -9/Materials | Entered Storage 936 | -9/Storage | Assisted by bots powering up and referring to "LRC-V3" 1233 | -9/Storage | Build established: Commander-Mutant 1703 | -9/Storage | Learned location of Armory (-3) 1764 | -9/Storage | Build established: Mutant 2048 | -9/Storage | Discovered new exit (range 7) 2058 | -9/Storage | Entered Materials 2058 | -8/Materials | Accompanied by 1 ally 2058 | -8/Materials | Evolved 2 slots: Power x1, Utility x1 2410 | -8/Materials | Identified exit to Factory 2497 | -8/Materials | Entered Factory 2497 | -7/Factory | Evolved 2 slots: Utility x1, Weapon x1 2579 | -7/Factory | Identified exit to DSF 2580 | -7/Factory | Entered DSF 2606 | -7/DSF | Additional patrols routed to DSF 2680 | -7/DSF | Lost 4 parts (2p1u1w) 2785 | -7/DSF | Self-destructed Last Messages --------------- 02720_ B-48 Gladiator destroyed. 02722_ Acquired 64 matter. 02725_ Acquired Hvy. Machine Gun. 02727_ Dropped Plasma Cannon. 02728_ Dropped Hvy. Laser. 02730_ ALERT: Suspicious intruders detected, dispatching Specialist reinforcements to area. 02735_ The unstable cave ceiling collapses. 02735_ Acquired Med. Storage Unit. 02738_ Dropped Sml. Storage Unit. 02746_ Critical hit (Destroy). 02746_ Flexi-carbon Leg destroyed. 02753_ Mni. Grenade Launcher destroyed. 02754_ Hvy. Assault Rifle destroyed. 02755_ Flexi-carbon Leg destroyed. 02756_ X-67 Chaingunner destroyed. 02760_ Hvy. Machine Gun destroyed. 02768_ Acquired 42 matter. 02781_ C-30 ARC bursts open, deploying its payload. 02781_ S-27 Virus unfolds itself. Map ----- +----------------------------------------------------+ | | | | | | | | | | | | | | | | | | | | | | | ????????????????????????????????????? | | ????????????????????????????????????? | | ????????????????????????????????????? | | ?????????????????????????##?????????? | | ????????????????????????#""?????????? | | ????????????????????????#"#?????????? | | ???????#########???????##"####??????? | | ???????# !!! #########""%""#??????? | | ???????# !!! # #!!##"%%""#??????? | | ???????# % ""##"????? | | ???????# !*[ """""????? | | ???????### ### #!!##== ""###????? | | ?????????# ??# #!!### ###??????? | | ???????? ???########## =##???????? | | ???????# ??????????# @[]#???????? | | ???????# ???????????# !! #???????? | | ???????### ???????????### ###??????? | | ?????????]????????????# ! #??????? | | ????????]]????????????#!! !##??????? | | ????????]?????????????# ! ! #??????? | | ???????##?????????????## #??????? | | ???????????????????????##= ! #?????? | | ???????????????????????# % ! ##?????? | | ?????????????????????? [[#??????? | | ???????????H????????? s[[#??????? | | ???????????????????? [[#??????? | | ???????????????????# ##xsss#??????? | | ???????????????????# ?# % #??????? | | ???????????????????####?# ###??????? | | ????????????????????????! ?????????? | | ????????????????????????!!!?????????? | | ????????????????????????!%=?????????? | | ????????????????????????#=!?????????? | | ????????????????????????! ?????????? | | ????????????????????????? ?????????? | | ????????????????????????? ?????????? | | ????????????????????????????????????? | | ????????????????????????????????????? | | ????????????????????????????????????? | +----------------------------------------------------+ Best States ------------- Heat Dissipation 34 Energy Generation 24 Energy Capacity 325 Matter Stores 300 Matter Capacity 300 Sight Range 16 Terrain Scan Range 14 Terrain Scan Density 85 ECM Strength 1 Armor Coverage 225 Resistance: EX 25 Evasion (%) 55 Targeting Accuracy 5 Recoil Reduction 2 Item Schematics ----------------- None Robot Schematics ------------------ None Fabricated ------------ Nothing Alien Tech Used ----------------- None Achievements -------------- A New Friend Challenges ------------ None Game ------ Seed GrenadeLinkedPropulsion Manual? 0 Play Time 00:22:24 Cumulative 23.2 hours Start 2024.09.28 @ 04:34:02 End 2024.09.28 @ 04:53:51 Sessions 1 Manual Loads 0 Difficulty Rogue Special Mode None Game No. 130 Rogue 130 Adventurer 0 Explorer 0 Win Type - Total 0 Types 0/0/0/0/0/0/0/0/0 Lore% 5 Gallery% 22 Achievement% 17 Wizard Run 0 Options --------- Layout 0 ASCII 0 Keyboard 0 Movement Arrows Keybinds 0 Fullscreen 2 Font 24/Cog Map View 76x50 Zoom Use 0% Tactical HUD 1 Map Filters NONE Filters NONE Steam 1 RUN: 1e97fd6d-5eb5-4122-b0ef-4956477aa52e